fUST/lending_fUST_20251007
["ID","MTS","AMOUNT","RATE_DAILY","PERIOD"]
[389664718,1759776652962,-151.0,0.00018489,2]
[389664719,1759776652972,-151.0,0.00018489,2]
[389664720,1759776652982,-151.0,0.00018489,2]
[389664721,1759776652991,-151.0,0.00018489,2]
[389664722,1759776653000,-151.0,0.00018489,2]
[389664723,1759776653010,-151.0,0.00018489,2]
[389664724,1759776653020,-151.0,0.00018489,2]
[389664725,1759776653030,-151.0,0.00018489,2]
[389664726,1759776653040,-151.0,0.00018489,2]
[389664727,1759776653051,-151.0,0.00018489,2]
[389664728,1759776653061,-151.0,0.00018489,2]
[389664729,1759776653071,-151.388318,0.00018489,2]
[389664730,1759776653081,-151.0,0.00018489,2]
[389664731,1759776653091,-151.0,0.00018489,2]
[389664732,1759776653102,-151.0,0.00018489,2]
[389664733,1759776653112,-151.0,0.00018489,2]
[389664734,1759776653122,-151.0,0.00018489,2]
[389664735,1759776653131,-151.0,0.00018489,2]
[389664736,1759776653140,-151.0,0.00018489,2]
[389664737,1759776653150,-151.0,0.00018489,2]
[389664738,1759776653160,-151.0,0.00018489,2]
[389664739,1759776653171,-151.0,0.00018489,2]
[389664740,1759776653180,-151.0,0.00018489,2]
[389664741,1759776653191,-151.0,0.00018489,2]
[389664742,1759776653201,-151.0,0.00018489,2]
[389664743,1759776653210,-292.12175045,0.00018489,2]
[389664744,1759776653220,-151.0,0.00018489,2]
[389664745,1759776653229,-227.340942,0.00018489,2]
[389664746,1759776653239,-151.0,0.00018489,2]
[389664747,1759776653249,-151.0,0.00018489,2]
[389664748,1759776653259,-271.425545,0.00018489,2]
[389664749,1759776653269,-151.0,0.00018489,2]
[389664750,1759776653279,-151.0,0.00018489,2]
[389664751,1759776653289,-151.0,0.00018489,2]
[389664752,1759776653298,-151.0,0.00018489,2]
[389664753,1759776653308,-151.0,0.00018489,2]
[389664754,1759776653319,-151.0,0.00018489,2]
[389664755,1759776653329,-151.0,0.00018489,2]
[389664756,1759776653339,-151.0,0.00018489,2]
[389664757,1759776653349,-151.0,0.00018489,2]
[389664758,1759776653359,-151.0,0.00018489,2]
[389664759,1759776653369,-213.443195,0.00018489,2]
[389664760,1759776653380,-151.0,0.00018489,2]
[389664761,1759776653391,-213.443195,0.00018489,2]
[389664762,1759776653401,-213.443195,0.00018489,2]
[389664763,1759776653411,-213.443195,0.00018489,2]
[389664764,1759776653422,-213.443195,0.00018489,2]
[389664765,1759776653432,-213.443195,0.00018489,2]
[389664766,1759776653444,-213.443195,0.00018489,2]
[389664767,1759776653453,-213.443196,0.00018489,2]
[389664768,1759776653464,-286.078383,0.00018489,2]
[389664769,1759776653474,-286.078383,0.00018489,2]
[389664770,1759776653483,-286.078383,0.00018489,2]
[389664771,1759776653493,-286.078383,0.00018489,2]
[389664772,1759776653503,-286.078383,0.00018489,2]
[389664773,1759776653512,-286.078383,0.00018489,2]
[389664774,1759776653522,-286.078383,0.00018489,2]
[389664775,1759776653532,-286.078374,0.00018489,2]
[389664776,1759776653542,-151.0,0.00018489,2]
[389664777,1759776653551,-151.0,0.00018489,2]
[389664778,1759776653560,-151.0,0.00018489,2]
[389664779,1759776653570,-151.951164,0.00018489,2]
[389664780,1759776653580,-320.901291,0.00018489,2]
[389664781,1759776653589,-320.901291,0.00018489,2]
[389664782,1759776653599,-320.901291,0.00018489,2]
[389664783,1759776653609,-320.901289,0.00018489,2]
[389664784,1759776653619,-244.80382,0.00018489,2]
[389664785,1759776653628,-244.80382,0.00018489,2]
[389664786,1759776653638,-244.80382,0.00018489,2]
[389664787,1759776653647,-244.803829,0.00018489,2]
[389664788,1759776653656,-207.350752,0.00018489,2]
[389664789,1759776653665,-207.350752,0.00018489,2]
[389664790,1759776653674,-207.350752,0.00018489,2]
[389664791,1759776653683,-207.350753,0.00018489,2]
[389664792,1759776653695,-370000.0,0.00018489,2]
[389664793,1759776653705,-500.0,0.00018489,2]
[389664794,1759776653716,-1314.252624,0.00018515,2]
[389664795,1759776653726,-234.17717776,0.00018525,2]
[389664796,1759776653736,-293.61728183,0.00018525,2]
[389664797,1759776653746,-160.0,0.00018525,2]
[389664798,1759776653756,-173.7529654,0.00018531,2]
[389664799,1759776653765,-208.0,0.00018581,2]
[389664800,1759776653775,-10000.0,0.00018589,2]
[389664801,1759776653786,-1314.252624,0.00018652,2]
[389664802,1759776653796,-151.0,0.00018678,2]
[389664803,1759776653805,-151.0,0.00018678,2]
[389664804,1759776653816,-151.0,0.00018678,2]
[389664805,1759776653825,-151.0,0.00018678,2]
[389664806,1759776653834,-151.0,0.00018678,2]
[389664807,1759776653844,-151.0,0.00018678,2]
[389664808,1759776653853,-283.75338,0.00018678,2]
[389664809,1759776653863,-151.0,0.00018678,2]
[389664810,1759776653872,-151.0,0.00018678,2]
[389664811,1759776653888,-151.0,0.00018678,2]
[389664812,1759776653898,-191.29322,0.00018678,2]
[389664813,1759776653909,-151.0,0.00018678,2]
[389664814,1759776653919,-151.0,0.00018678,2]
[389664815,1759776653931,-151.0,0.00018678,2]
[389664816,1759776653944,-151.0,0.00018689,2]
[389664817,1759776653955,-151.0,0.00018689,2]
[389664818,1759776653966,-151.0,0.00018689,2]
[389664819,1759776653975,-333.12919212,0.00018699,2]
[389664820,1759776653986,-164.0,0.00018735,2]
[389664821,1759776653996,-500.0,0.00018763,2]
[389664822,1759776654006,-151.0,0.00018779,3]
[389664823,1759776654016,-151.0,0.00018779,3]
[389664824,1759776654025,-151.0,0.00018779,3]
[389664825,1759776654035,-198.00641291,0.00018779,3]
[389664826,1759776654045,-224.82026723,0.00018779,3]
[389664827,1759776654055,-961.0,0.00018779,3]
[389664828,1759776654065,-151.0,0.00018779,3]
[389664829,1759776654075,-500.0,0.00018779,3]
[389664830,1759776654086,-253.65687441,0.00018779,2]
[389664831,1759776654095,-151.0,0.00018779,3]
[389664832,1759776654105,-500.0,0.00018779,3]
[389664833,1759776654115,-500.0,0.00018779,3]
[389664834,1759776654124,-500.0,0.00018779,3]
[389664835,1759776654134,-151.0,0.00018779,3]
[389664836,1759776654143,-294.51348317,0.00018779,3]
[389664837,1759776654152,-151.0,0.00018779,3]
[389664838,1759776654162,-151.0,0.00018779,3]
[389664839,1759776654172,-151.0,0.00018779,3]
[389664840,1759776654182,-151.0,0.00018779,2]
[389664841,1759776654192,-1314.252624,0.00018788,2]
[389664842,1759776654202,-500.0,0.00018798,2]
[389664843,1759776654212,-151.0,0.000188,2]
[389664844,1759776654221,-151.0,0.000188,2]
[389664845,1759776654231,-200.0,0.00018899,2]
[389664846,1759776654241,-200.0,0.00018899,2]
[389664847,1759776654250,-106196.98505834,0.000189,2]
[389664848,1759776654261,-151.0,0.000189,2]
[389664849,1759776654270,-1314.252624,0.00018925,2]
[389664850,1759776654280,-300.05467351,0.00019,2]
[389664851,1759776654290,-7106.88366796,0.00019,2]
[389664852,1759776654299,-84220.10422686,0.00019,5]
[389664853,1759776654343,-451.64538587,0.00019,5]
[389664855,1759777082022,1007.0,0.00028767,120]
[389664856,1759777175487,13929.17788268,0.0002022,19]
[389664863,1759777680355,210.71,0.00016084,2]
[389664922,1759777831959,-315.395116,0.00017327,2]
[389664924,1759777831970,-250.12450175,0.00017338,2]
[389664926,1759777831979,-1000.0,0.00017374,2]
[389664928,1759777831990,-740.46545907,0.00017389,2]
[389664931,1759777832015,-463.66376798,0.00017389,2]
[389664933,1759777832027,-583.64675381,0.00017389,2]
[389665403,1759777837698,-956.03895164,0.00017389,2]
[389665406,1759777837712,-273.98095044,0.0001799,2]
[389665519,1759777840124,-5976.51904956,0.0001799,2]
[389665520,1759777840134,-275.13695192,0.00018138,2]
[389665521,1759777840143,-672.73939327,0.00018267,2]
[389665523,1759777840179,-180.36749801,0.00018267,2]
[389665524,1759777840460,-300.0,0.00018328,2]
[389665525,1759777840471,-11830.61833148,0.00018329,2]
[389665526,1759777840480,-1209.73341306,0.00018329,2]
[389665527,1759777840490,-293.61728183,0.00018361,2]
[389665528,1759777840499,-160.0,0.00018361,2]
[389665529,1759777840509,-234.17717776,0.00018361,2]
[389665530,1759777840518,-151.0,0.00018367,2]
[389665531,1759777840527,-9249.45346271,0.00018367,2]
[389665532,1759777840543,-9354.43023729,0.00018367,2]
[389665533,1759777840552,-182.49,0.00018368,3]
[389665534,1759777840561,-273.74,0.00018368,3]
[389665535,1759777840570,-821.25,0.00018368,3]
[389665536,1759777840580,-500.0,0.00018373,2]
[389665537,1759777840590,-500.0,0.00018373,2]
[389665538,1759777840599,-500.0,0.00018373,2]
[389665539,1759777840609,-500.0,0.00018373,2]
[389665540,1759777840619,-231539.00407195,0.00018378,2]
[389665563,1759777843344,-41852.8216381,0.00018378,2]
[389665565,1759777843356,-524.84873616,0.00018378,2]
[389665567,1759777843366,-500.000991,0.00018378,2]
[389665789,1759777845872,-9177.80525386,0.00018378,2]
[389665802,1759777845980,-86405.51930893,0.00018378,2]
[389665803,1759777845989,-247.4982724,0.00018429,2]
[389665805,1759777845999,-297.5754271,0.000185,2]
[389665807,1759777846008,-162.7020905,0.000185,2]
[389665809,1759777846017,-587.7798688,0.000185,2]
[389665811,1759777846026,-297.5754271,0.000185,2]
[389665813,1759777846036,-1209.73341306,0.00018516,2]
[389665815,1759777846045,-1462.94254067,0.00018651,2]
[389665817,1759777846055,-1209.73341306,0.00018704,2]
[389665819,1759777846064,-500.0,0.00018798,2]
[389665821,1759777846073,-1209.73341306,0.00018891,2]
[389665824,1759777846082,-303.06060909,0.000189,2]
[389665827,1759777846091,-155.4584959,0.00018915,2]
[389665828,1759777846100,-19292.2273969,0.00018915,2]
[389665830,1759777846109,-1000.0,0.00018921,2]
[389665832,1759777846118,-1000.0,0.00018921,2]
[389665834,1759777846127,-1000.0,0.00018921,2]
[389665836,1759777846136,-1000.0,0.00018921,2]
[389665838,1759777846145,-300.1494021,0.00018938,2]
[389665840,1759777846155,-491.68,0.00018952,2]
[389665842,1759777846163,-5343.63712325,0.00019,5]
[389665845,1759777846175,-3053.1,0.00019,5]
[389665847,1759777846186,-564.37584652,0.00019,5]
[389665850,1759777846210,-50399.99999999,0.00019,5]
[389666780,1759777864015,2453.87,0.00025,30]
[389666781,1759777875695,3680.81,0.00025,30]
[389666782,1759777885945,1840.4,0.00025,30]
[389666783,1759777898277,1840.0,0.00028767,120]
[389666796,1759778136655,1046.29131387,0.00028767,120]
[389666797,1759778351806,160.27899247,0.00024932,30]
[389666798,1759778443622,1049.374954,0.00013699,2]
[389666799,1759778527780,623.23,0.00027397,120]
[389666905,1759779032065,-183.079199,0.00017733,2]
[389666907,1759779032074,-229.86217608,0.00017742,2]
[389666908,1759779032083,-165.56995736,0.0001781,2]
[389666910,1759779032094,-84.43004264,0.0001781,2]
[389666912,1759779032103,-208.0,0.00017878,2]
[389666914,1759779032112,-208.0,0.00018233,2]
[389666916,1759779032122,-300.0,0.00018261,2]
[389666917,1759779032131,-241.94668262,0.00018262,2]
[389666920,1759779032140,-1430.12327474,0.00018267,2]
[389666922,1759779032156,-355.59869616,0.00018267,2]
[389666925,1759779032176,-7729.17721211,0.00018267,2]
[389666927,1759779032185,-152.07,0.00018268,3]
[389666929,1759779032194,-456.25,0.00018268,3]
[389666931,1759779032202,-201.1381566,0.00018273,2]
[389666934,1759779032211,-500.0,0.00018273,2]
[389666937,1759779032220,-389.96463129,0.00018278,2]
[389666940,1759779032233,-7076.7,0.00018278,2]
[389666983,1759779037906,-1272.90675034,0.00018278,2]
[389666984,1759779037917,-8360.45202036,0.00018278,2]
[389666985,1759779037960,-8307.89803063,0.00018278,2]
[389666986,1759779038016,-500.4380789,0.00018278,2]
[389666987,1759779038028,-956.74127971,0.00018278,2]
[389666988,1759779038039,-500.0,0.00018278,2]
[389666989,1759779038052,-66709.59801471,0.00018278,2]
[389666990,1759779038063,-2147.87151535,0.00018278,2]
[389667001,1759779040050,-7585.84279065,0.00018278,2]
[389667002,1759779040101,-3313.53114223,0.00018278,2]
[389667003,1759779040112,-507.34145989,0.00018278,2]
[389667029,1759779045168,-420.73348553,0.00018278,2]
[389667030,1759779045179,-20642.05193737,0.00018278,2]
[389667031,1759779045191,-4456.08247658,0.00018278,2]
[389667051,1759779046101,-746.46852987,0.00018262,2]
[389667052,1759779046110,-236851.84638646,0.00018278,2]
[389667053,1759779046119,-716.0,0.00018362,2]
[389667054,1759779046128,-716.0,0.00018383,2]
[389667055,1759779046137,-716.0,0.00018404,2]
[389667056,1759779046146,-241.94668261,0.00018466,2]
[389667057,1759779046155,-390.611828,0.000185,2]
[389667058,1759779046164,-716.0,0.00018529,2]
[389667059,1759779046173,-716.0,0.00018536,2]
[389667060,1759779046184,-252.84839368,0.00018542,2]
[389667061,1759779046195,-594.7322958,0.00018603,2]
[389667062,1759779046205,-716.0,0.00018618,2]
[389667063,1759779046214,-716.0,0.00018636,2]
[389667064,1759779046223,-1440.19213066,0.00018656,2]
[389667065,1759779046232,-241.94668261,0.0001867,2]
[389667066,1759779046241,-716.0,0.00018671,2]
[389667067,1759779046251,-440.21380009,0.0001871,2]
[389667068,1759779046262,-25.86394675,0.0001871,2]
[389667069,1759779046271,-716.0,0.00018723,2]
[389667070,1759779046280,-151.0,0.000188,2]
[389667071,1759779046289,-151.0,0.000188,2]
[389667072,1759779046298,-716.0,0.00018806,2]
[389667073,1759779046307,-1000.0,0.00018821,2]
[389667074,1759779046316,-716.0,0.00018821,2]
[389667075,1759779046325,-241.94668261,0.00018874,2]
[389667076,1759779046334,-151.0,0.000189,2]
[389667077,1759779046343,-151.0,0.000189,2]
[389667078,1759779046353,-293.61728183,0.00018921,2]
[389667079,1759779046362,-160.0,0.00018921,2]
[389667080,1759779046371,-716.0,0.00018942,2]
[389667081,1759779046380,-716.0,0.00018983,2]
[389667082,1759779046389,-100015.23509971,0.00019,5]
[389667083,1759779285931,200.0,0.0002876,120]
[389667084,1759779325977,200.0,0.0002876,120]
[389667085,1759779415591,2355.1919997,0.00019255,9]
[389667086,1759779663466,161.378671,0.00024,30]
[389667087,1759779680350,597.26,0.00027397,120]
[389667088,1759779689815,500.0,0.00015896,2]
[389667089,1759779694711,500.0,0.0001584,2]
[389667090,1759779699448,500.0,0.0001584,2]
[389667091,1759779704390,500.0,0.0001584,2]
[389667092,1759779709301,213.22891358,0.0001584,2]
[389667147,1759780232341,-500.0,0.00016733,2]
[389667149,1759780232351,-224.30398404,0.00016983,2]
[389667151,1759780232360,-157.697558,0.00017013,2]
[389667153,1759780232369,-428.2819553,0.00017233,2]
[389667155,1759780232378,-411.7678065,0.00017613,2]
[389667159,1759780232402,-88.2321935,0.00017613,2]
[389667161,1759780232411,-246.73438244,0.00017783,2]
[389667163,1759780232420,-184.621273,0.00017913,2]
[389667165,1759780232429,-714.71616853,0.00018098,2]
[389667166,1759780232439,-241.94668261,0.00018098,2]
[389667168,1759780232448,-304.14,0.00018168,3]
[389667170,1759780232457,-300.0,0.00018176,2]
[389667172,1759780232467,-634.51680878,0.00018177,2]
[389667174,1759780232476,-276.77443666,0.00018177,2]
[389667177,1759780232485,-423.94600463,0.00018177,2]
[389667180,1759780232494,-405.67575556,0.00018177,2]
[389667183,1759780232504,-9233.72184396,0.00018178,2]
[389667187,1759780232515,-1295.93775,0.00018178,2]
[389667190,1759780232526,-993.39393509,0.00018178,2]
[389667194,1759780232536,-670.9020678,0.00018178,2]
[389667448,1759780238112,-1529.81688329,0.00018178,2]
[389667455,1759780238165,-39166.43679221,0.00018178,2]
[389667457,1759780238176,-7857.86539756,0.00018178,2]
[389667459,1759780238188,-480.0,0.00018178,2]
[389667463,1759780238221,-10082.1560482,0.00018178,2]
[389667465,1759780238232,-106905.65032037,0.00018178,2]
[389667467,1759780238244,-2191.31827454,0.00018178,2]
[389667469,1759780238255,-690.50866658,0.00018178,2]
[389667471,1759780238267,-1088.47541768,0.00018178,2]
[389667473,1759780238277,-1456.79459003,0.00018178,2]
[389667475,1759780238288,-1512.67597889,0.00018178,2]
[389667477,1759780238299,-3392.2528109,0.00018178,2]
[389667969,1759780243339,-283.17719691,0.00018178,2]
[389667977,1759780243400,-411.09237318,0.00018178,2]
[389668024,1759780246206,-2494.02756376,0.00018178,2]
[389668025,1759780246217,-2355.1919997,0.00018178,2]
[389668026,1759780246228,-112027.96503721,0.00018178,2]
[389668027,1759780246238,-8387.79396934,0.00018198,2]
[389668028,1759780246247,-500.0,0.0001854,2]
[389668029,1759780246256,-269.16478085,0.00018583,2]
[389668030,1759780246266,-397.0901474,0.00018603,2]
[389668031,1759780246276,-848.19698543,0.00018793,2]
[389668032,1759780246285,-3389.39515379,0.00018793,2]
[389668033,1759780246294,-373.79651555,0.00018798,2]
[389668034,1759780246303,-296.85901067,0.00018798,2]
[389668035,1759780246312,-1186.24860665,0.00018798,2]
[389668036,1759780246321,-500.0,0.00018798,2]
[389668043,1759780246514,-234.17717776,0.00018833,2]
[389668044,1759780246525,-325.175263,0.00018849,2]
[389668045,1759780246534,-306.0,0.00018849,2]
[389668046,1759780246543,-1174.7421118,0.00018849,2]
[389668047,1759780246552,-861.68466379,0.00018891,2]
[389668048,1759780246562,-8387.79396932,0.00018912,2]
[389668049,1759780246571,-160.0,0.00018929,2]
[389668050,1759780246580,-293.61728183,0.00018929,2]
[389668051,1759780246590,-1000.0,0.00018958,2]
[389668052,1759780246599,-1000.0,0.00018958,2]
[389668053,1759780246608,-1000.0,0.00018958,2]
[389668054,1759780246617,-1000.0,0.00018958,2]
[389668055,1759780246626,-1000.0,0.00018958,2]
[389668056,1759780246635,-1000.0,0.00018958,2]
[389668057,1759780246644,-1000.0,0.00018958,2]
[389668058,1759780246652,-1000.0,0.00018958,2]
[389668059,1759780246662,-1000.0,0.00018958,2]
[389668060,1759780246671,-911.3,0.00018958,2]
[389668061,1759780246680,-388531.61847061,0.00019,5]
[389668062,1759780246689,-3033.78383067,0.00019,7]
[389668063,1759780246699,-25000.0,0.00019,2]
[389668064,1759780246708,-151.0,0.00019,2]
[389668065,1759780246718,-25000.0,0.00019025,2]
[389668066,1759780246728,-17976.23716201,0.0001905,2]
[389668067,1759780246744,-7023.76283799,0.0001905,2]
[389668068,1759780246753,-95.5636519,0.00019063,7]
[389668069,1759780246770,-5939.79998729,0.00019063,7]
[389668070,1759780246780,-500.0,0.00019063,7]
[389668071,1759780246789,-500.0,0.00019072,2]
[389668072,1759780246799,-716.0,0.00019073,2]
[389668073,1759780246809,-716.0,0.00019086,2]
[389668074,1759780246822,-716.0,0.00019099,2]
[389668075,1759780246832,-1517.51120312,0.000191,2]
[389668076,1759780246842,-200.0,0.000191,2]
[389668077,1759780246851,-10000.0,0.000191,2]
[389668078,1759780246862,-151.0,0.000191,2]
[389668079,1759780246872,-151.0,0.000191,2]
[389668080,1759780246881,-976.0,0.000191,2]
[389668081,1759780246891,-500.0,0.000191,2]
[389668082,1759780246900,-500.0,0.000191,2]
[389668083,1759780246909,-151.0,0.000191,2]
[389668084,1759780246917,-183.54901209,0.000191,2]
[389668085,1759780246926,-151.0,0.000191,2]
[389668086,1759780246935,-500.0,0.000191,2]
[389668087,1759780246944,-151.0,0.000191,2]
[389668088,1759780246953,-500.0,0.000191,2]
[389668089,1759780246962,-151.0,0.000191,2]
[389668090,1759780246971,-151.0,0.000191,2]
[389668091,1759780246980,-151.0,0.000191,2]
[389668092,1759780246988,-500.0,0.000191,2]
[389668093,1759780246997,-500.0,0.000191,2]
[389668094,1759780247006,-157.63813367,0.000191,2]
[389668095,1759780247015,-198.0,0.000191,2]
[389668096,1759780247024,-151.0,0.000191,2]
[389668097,1759780247033,-500.0,0.000191,2]
[389668098,1759780247042,-500.0,0.000191,2]
[389668099,1759780247052,-716.0,0.00019107,2]
[389668100,1759780247062,-714.7161685,0.00019133,2]
[389668101,1759780247071,-651.30121882,0.00019137,4]
[389668102,1759780247082,-688.56241181,0.00019137,4]
[389668103,1759780247091,-188.0714951,0.00019151,2]
[389668104,1759780247100,-400.0,0.0001917,3]
[389668105,1759780247109,-685.48329263,0.0001917,2]
[389668106,1759780247117,-354.15497231,0.00019173,2]
[389668107,1759780247126,-500.0,0.00019173,2]
[389668108,1759780247136,-500.0,0.00019173,2]
[389668109,1759780247145,-500.0,0.00019173,2]
[389668110,1759780247153,-500.0,0.00019173,2]
[389668111,1759780247162,-514.31782585,0.00019173,2]
[389668112,1759780247171,-500.0,0.00019173,2]
[389668113,1759780247180,-500.0,0.00019173,2]
[389668114,1759780247189,-107.26316354,0.00019173,2]
[389668115,1759780247204,-392.73683646,0.00019173,2]
[389668116,1759780247213,-437.90266354,0.00019173,2]
[389668547,1759780738488,3837.26,0.00028767,120]
[389668548,1759781021383,299.8,0.000161,2]
[389668549,1759781312861,996.906206,0.00013699,2]
[389669075,1759781438441,-300.0,0.00018077,2]
[389669077,1759781438451,-202.09788962,0.00018077,2]
[389669079,1759781438461,-234.0230196,0.00018078,2]
[389669082,1759781438473,-12163.34525963,0.00018078,2]
[389669084,1759781438485,-7226.88206311,0.00018078,2]
[389669086,1759781438495,-500.0,0.00018178,2]
[389669088,1759781438505,-160.0,0.00018339,2]
[389669090,1759781438515,-234.17717776,0.00018339,2]
[389669092,1759781438525,-500.0,0.00018451,2]
[389669094,1759781438536,-500.0,0.00018725,2]
[389669096,1759781438546,-320.67048387,0.00018877,2]
[389669132,1759781440599,-313.58215009,0.00018877,2]
[389669347,1759782107617,7303.01037978,0.00016,2]
[389669348,1759782170911,300.0,0.00025,30]
[389669349,1759782179746,900.0,0.00025,30]
[389669350,1759782182896,7000.0,0.00016,2]
[389669351,1759782193466,300.0,0.00025,30]
[389669352,1759782201510,931.31064398,0.00025,30]
[389669353,1759782209680,600.0,0.00025,30]
[389669354,1759782255248,160.27899246,0.00024932,30]
[389669356,1759782464826,2926.99144214,0.000161,2]
[389669362,1759782589128,10000.01,0.000158,2]
[389669363,1759782589149,10000.01,0.000158,2]
[389669364,1759782589174,95000.0,0.000158,2]
[389669365,1759782591007,-187.98510327,0.000158,2]
[389669366,1759782593473,-245.61114316,0.000158,2]
[389669367,1759782596428,-429.8773628,0.000158,2]
[389669368,1759782597265,245.61114316,0.00015642,2]
[389669369,1759782597900,-276.06075692,0.000158,2]
[389669370,1759782600822,521.43,0.0001579,3]
[389669371,1759782601439,300.0,0.00015799,2]
[389669372,1759782602139,300.0,0.00015799,2]
[389669373,1759782602173,300.0,0.00015799,2]
[389669374,1759782602202,300.0,0.00015799,2]
[389669375,1759782602308,300.0,0.00015799,2]
[389669376,1759782602337,1200.0,0.00015799,2]
[389669377,1759782605684,763.12493806,0.00015642,2]
[389669378,1759782611702,260.72,0.0001579,3]
[389669379,1759782620732,705.93811972,0.00015642,2]
[389669380,1759782622542,782.16,0.0001579,3]
[389669381,1759782628567,628.1472187,0.00015642,2]
[389669383,1759782632170,305.85895704,0.00015799,2]
[389669386,1759782632198,165.49814966,0.00015799,2]
[389669441,1759782632679,-4280.07093308,0.000158,2]
[389669448,1759782632735,-4643.85691542,0.000158,2]
[389669487,1759782633039,239.47416768,0.00015799,2]
[389669492,1759782633076,588.60523932,0.00015799,2]
[389669496,1759782633104,553.98798508,0.00015799,2]
[389669643,1759782636633,1539.45408158,0.00015642,2]
[389669644,1759782636654,2351.27729794,0.00015642,2]
[389669672,1759782638629,-192214.89634321,0.000158,2]
[389669673,1759782638638,-216.43081821,0.00016099,2]
[389669674,1759782638647,-500.0,0.00016333,2]
[389669675,1759782638656,-500.0,0.00016333,2]
[389669676,1759782638665,-500.38614577,0.00016333,2]
[389669677,1759782638674,-501.08881674,0.00016333,2]
[389669678,1759782638683,-500.0,0.00016333,2]
[389669679,1759782638692,-500.0,0.00016333,2]
[389669680,1759782638701,-500.50182678,0.00016333,2]
[389669681,1759782638710,-500.0,0.00016333,2]
[389669682,1759782638718,-506.55820238,0.00016333,2]
[389669683,1759782638728,-500.81577523,0.00016333,2]
[389669685,1759782638737,-484.29988071,0.00016333,2]
[389669686,1759782638746,-500.0,0.00016333,2]
[389669687,1759782638755,-500.0,0.00016333,2]
[389669688,1759782638764,-500.5796251,0.00016333,2]
[389669689,1759782638774,-2274.91191449,0.00016333,2]
[389669690,1759782638783,-500.0,0.00016438,2]
[389669691,1759782638792,-500.0,0.00016438,2]
[389669692,1759782638802,-500.0,0.00016438,2]
[389669693,1759782638811,-500.0,0.00016438,2]
[389669694,1759782638820,-500.0,0.00016438,2]
[389669695,1759782638829,-186.65594284,0.00016438,2]
[389669696,1759782638839,-500.0,0.00016438,2]
[389669697,1759782638849,-500.0,0.00016438,2]
[389669698,1759782638858,-500.0,0.00016438,2]
[389669699,1759782638867,-500.0,0.00016438,2]
[389669700,1759782638876,-500.0,0.00016438,2]
[389669701,1759782638886,-500.0,0.00016438,2]
[389669702,1759782638895,-300.0,0.00016438,2]
[389669703,1759782638904,-250.0,0.00016685,2]
[389669704,1759782638913,-1000.0,0.00016881,2]
[389669705,1759782638922,-502.63475921,0.00016881,2]
[389669706,1759782638931,-500.0,0.00016881,2]
[389669707,1759782638940,-238.07390003,0.000169,2]
[389669708,1759782638949,-110043.93304594,0.00017,2]
[389669709,1759782638957,-1042.86,0.0001716,3]
[389669710,1759782638967,-521.44,0.0001716,3]
[389669711,1759782638976,-186.0,0.00017277,2]
[389669712,1759782638985,-420.0,0.00017277,2]
[389669713,1759782638994,-1500.0,0.00017429,2]
[389669714,1759782639003,-259.71698186,0.000177,2]
[389669715,1759782639012,-2000.0,0.00017977,2]
[389669716,1759782639021,-3143.95829286,0.00018037,2]
[389669717,1759782639030,-183.079199,0.00018137,2]
[389669718,1759782639039,-310.0,0.00018201,2]
[389669719,1759782639049,-358.0,0.00018364,2]
[389669720,1759782639058,-401.98989178,0.00018445,2]
[389669721,1759782639067,-281.36006368,0.00018499,2]